bitfinex/quotes_BTCUSD_20241222
["timestamp","ask_amount","ask_price","bid_price","bid_amount"]
[1734902186552,0.0001712,95609.0,95606.0,0.209191]
[1734902188284,0.0001712,95609.0,95606.0,0.418382]
[1734902188492,0.0001712,95609.0,95606.0,0.423382]
[1734902189127,0.0001712,95609.0,95608.0,0.209187]
[1734902190236,0.0001712,95609.0,95608.0,0.4834954]
[1734902191188,0.0001712,95609.0,95608.0,1.1373054]
[1734902191433,0.0001712,95609.0,95608.0,1.1323054]
[1734902191674,0.0011712,95609.0,95608.0,1.1413054]
[1734902194712,0.0001712,95615.0,95608.0,1.76285744]
[1734902194943,0.0001712,95615.0,95614.0,0.382174]
[1734902195175,0.0001712,95615.0,95614.0,0.51560034]
[1734902195858,0.0011712,95615.0,95614.0,0.51560034]
[1734902196096,0.0011712,95615.0,95614.0,0.55465238]
[1734902196954,0.0011712,95615.0,95614.0,1.28102238]
[1734902197624,0.0001712,95615.0,95614.0,1.28102238]
[1734902197820,0.0831,95646.0,95618.0,0.00138531]
[1734902198021,0.0831,95646.0,95645.0,0.209106]
[1734902198453,0.0001714,95648.0,95645.0,0.418212]
[1734902198653,0.0831,95655.0,95638.0,0.023]
[1734902198856,0.0001712,95656.0,95646.0,0.173]
[1734902199061,0.0001712,95656.0,95654.0,0.209086]
[1734902199261,0.00071161,95656.0,95654.0,0.209086]
[1734902199906,0.00071161,95656.0,95654.0,0.857646]
[1734902200396,0.00071161,95656.0,95655.0,0.15]
[1734902200596,0.00071161,95656.0,95655.0,0.79855]
[1734902200802,0.00071161,95656.0,95655.0,0.9228584]
[1734902201014,0.00071161,95656.0,95655.0,0.94332599]
[1734902201217,0.00071161,95656.0,95655.0,0.97541122]
[1734902202347,0.00071161,95656.0,95655.0,0.94932599]
[1734902202556,0.00071161,95656.0,95655.0,0.98136327]
[1734902203741,0.0831,95681.0,95664.0,0.023]
[1734902204104,0.0831,95695.0,95680.0,0.418059]
[1734902204308,0.0831,95695.0,95685.0,0.12602712]
[1734902204309,0.09861469,95693.0,95685.0,0.12602712]
[1734902204517,0.209003,95692.0,95685.0,0.12602712]
[1734902204713,0.06094796,95686.0,95685.0,0.12602712]
[1734902204916,0.09861469,95693.0,95681.0,0.02077532]
[1734902204917,0.06094796,95684.0,95681.0,0.02077532]
[1734902205120,0.06094796,95676.0,95672.0,0.15]
[1734902205324,0.06094796,95674.0,95672.0,0.68374131]
[1734902205527,0.06094796,95674.0,95672.0,0.68390383]
[1734902206103,0.06094796,95674.0,95672.0,0.70467706]
[1734902207178,0.06094796,95674.0,95672.0,0.91372306]
[1734902208193,0.06094796,95674.0,95672.0,0.91472306]
[1734902208827,0.06094796,95674.0,95672.0,0.78772306]
[1734902209024,0.06094796,95674.0,95672.0,0.57867706]
[1734902209434,0.06094796,95674.0,95672.0,0.61539121]
[1734902209677,0.06094796,95674.0,95672.0,0.61739121]
[1734902210237,0.06111916,95674.0,95672.0,0.61739121]
[1734902213736,0.06111916,95674.0,95672.0,0.59661798]
[1734902213948,0.06111916,95674.0,95672.0,0.55990383]
[1734902214363,0.06111916,95674.0,95672.0,0.43390383]
[1734902216436,0.0001712,95674.0,95673.0,0.209045]
[1734902217483,0.06111916,95674.0,95673.0,0.209045]
[1734902218257,0.06094796,95673.0,95672.0,0.43190383]
[1734902218460,0.14134796,95673.0,95672.0,0.43190383]
[1734902218673,0.14134796,95673.0,95672.0,0.30590383]
[1734902220838,0.38757762,95673.0,95672.0,0.30590383]
[1734902221052,0.38627105,95673.0,95672.0,0.30590383]
[1734902221475,0.38627105,95673.0,95672.0,0.30598933]
[1734902222254,0.39027105,95673.0,95672.0,0.30598933]
[1734902223547,0.38627105,95673.0,95672.0,0.30598933]
[1734902223779,0.38627105,95673.0,95672.0,0.17998933]
[1734902224484,0.39327105,95673.0,95672.0,0.18098933]
[1734902227318,0.06094796,95636.0,95615.0,0.1407945]
[1734902227538,0.06094796,95636.0,95625.0,0.209149]
[1734902227791,0.09861469,95649.0,95636.0,0.0485]
[1734902228026,0.0013068,95672.0,95663.0,0.209067]
[1734902228274,0.0001712,95674.0,95672.0,0.209047]
[1734902228744,0.000171,95683.0,95680.0,0.209028]
[1734902228982,0.09861469,95679.0,95678.0,0.209034]
[1734902229226,0.000171,95683.0,95676.0,0.209038]
[1734902229469,0.000171,95683.0,95671.0,0.209049]
[1734902229470,0.000171,95683.0,95671.0,0.03698993]
[1734902229709,0.000171,95683.0,95681.0,0.209025]
[1734902231402,0.000171,95683.0,95681.0,0.211025]
[1734902231823,0.000171,95683.0,95681.0,0.209025]
[1734902232039,0.001171,95683.0,95681.0,0.217025]
[1734902232316,0.001171,95683.0,95682.0,0.209025]
[1734902232548,0.001171,95683.0,95681.0,0.008]
[1734902233428,0.001171,95683.0,95681.0,0.217026]
[1734902233649,0.001171,95683.0,95682.0,0.1013084]
[1734902233889,0.000171,95683.0,95682.0,0.1558168]
[1734902234095,0.004171,95683.0,95682.0,0.0545084]
[1734902234302,0.004171,95683.0,95678.0,0.03662009]
[1734902234506,0.000171,95683.0,95678.0,0.03662009]
[1734902234728,0.001171,95683.0,95681.0,0.008]
[1734902235140,0.000171,95683.0,95676.0,0.15016253]
[1734902235351,0.000171,95683.0,95682.0,0.006]
[1734902235352,0.001171,95683.0,95682.0,0.006]
[1734902235747,0.000171,95683.0,95681.0,0.209026]
[1734902237822,0.001171,95683.0,95681.0,0.209026]
[1734902238049,0.000171,95683.0,95681.0,0.209026]
[1734902238528,0.001171,95683.0,95681.0,0.216026]
[1734902238812,0.000171,95683.0,95681.0,0.209026]
[1734902239053,0.001171,95683.0,95681.0,0.007]
[1734902239300,0.001171,95683.0,95681.0,0.216026]
[1734902239779,0.001171,95683.0,95681.0,0.007]
[1734902240023,0.001171,95683.0,95682.0,0.209025]
[1734902240265,0.000171,95683.0,95682.0,0.209025]
[1734902240498,0.001171,95683.0,95682.0,0.209025]
[1734902240993,0.000171,95683.0,95682.0,0.209025]
[1734902241241,0.001171,95683.0,95682.0,0.216025]
[1734902243732,0.001171,95683.0,95682.0,0.090025]
[1734902244018,0.001171,95683.0,95682.0,0.007]
[1734902244433,0.001171,95683.0,95682.0,0.14544175]
[1734902244626,0.001171,95683.0,95682.0,0.50446675]
[1734902246005,0.001171,95683.0,95682.0,0.366025]
[1734902247720,0.001171,95683.0,95682.0,0.157]
[1734902248801,0.001171,95683.0,95681.0,0.1500855]
[1734902249052,0.001171,95683.0,95682.0,0.209025]
[1734902251424,0.001171,95683.0,95682.0,0.34798787]
[1734902251923,0.001171,95683.0,95682.0,0.49798787]
[1734902252338,0.001171,95683.0,95682.0,0.59929627]
[1734902252728,0.001171,95683.0,95682.0,0.67989627]
[1734902252986,0.001171,95683.0,95682.0,0.6133334]
[1734902253223,0.001171,95683.0,95682.0,0.64547663]
[1734902253440,1e-08,95683.0,95682.0,0.64547663]
[1734902253875,1e-08,95683.0,95682.0,1.39177663]
[1734902254127,1e-08,95683.0,95682.0,1.28147663]
[1734902254548,0.015,95692.0,95691.0,0.359006]
[1734902254759,0.015,95692.0,95691.0,0.4833144]
[1734902255194,0.09861469,95713.0,95691.0,0.3549084]
[1734902255403,0.09861469,95722.0,95710.0,0.289564]
[1734902255618,0.09861469,95723.0,95710.0,0.289564]
[1734902255828,0.09861469,95724.0,95710.0,0.289564]
[1734902256454,0.09861469,95724.0,95710.0,0.439564]
[1734902256659,0.09861469,95724.0,95710.0,0.43972653]
[1734902257093,0.09861469,95725.0,95710.0,0.43972653]
[1734902257308,0.00130593,95735.0,95710.0,0.43972653]
[1734902257725,0.0822,95736.0,95710.0,0.44472653]
[1734902257726,0.09861469,95725.0,95710.0,0.44472653]
[1734902258141,0.09861469,95725.0,95710.0,0.53722689]
[1734902258509,0.09861469,95725.0,95710.0,0.53222689]
[1734902258734,0.09861469,95725.0,95710.0,0.46915363]
[1734902258914,0.09861469,95725.0,95710.0,0.38618963]
[1734902259775,0.09861469,95725.0,95710.0,0.59515363]
[1734902260120,0.09861469,95725.0,95710.0,0.52055363]
[1734902260745,0.09861469,95725.0,95710.0,0.42805327]
[1734902262628,0.09861469,95713.0,95710.0,0.06908927]
[1734902262833,0.09878589,95711.0,95710.0,0.00616253]
[1734902263042,0.10345032,95711.0,95710.0,0.00616253]
[1734902263246,0.41372072,95711.0,95710.0,0.00616253]
[1734902263766,0.41372072,95711.0,95703.0,0.11141344]
[1734902263983,0.09861469,95704.0,95703.0,0.11157597]
[1734902264451,0.09861469,95704.0,95703.0,0.00016253]
[1734902264859,0.10326698,95704.0,95703.0,0.02075473]
[1734902265473,0.10326698,95704.0,95703.0,0.02175473]
[1734902267809,0.10326698,95704.0,95703.0,0.02075473]
[1734902268503,0.10526698,95704.0,95703.0,0.02075473]
[1734902268882,0.09861469,95701.0,95694.0,0.208997]
[1734902269060,0.09861469,95701.0,95694.0,0.209051]
[1734902269464,0.09861469,95701.0,95700.0,0.02057755]
[1734902273586,0.09992089,95701.0,95700.0,0.02057755]
[1734902273813,0.09992089,95701.0,95694.0,0.04194476]
[1734902274050,0.00130621,95700.0,95699.0,0.02129763]
[1734902274561,0.09861469,95701.0,95690.0,0.12602712]
[1734902274788,0.00016225,95700.0,95691.0,0.25095563]
[1734902274988,0.00016225,95700.0,95692.0,0.209003]
[1734902275536,0.00016225,95700.0,95699.0,0.02155471]
[1734902275774,0.00016225,95700.0,95699.0,0.02055471]
[1734902278168,0.00016225,95700.0,95699.0,0.02155471]
[1734902278917,0.00016225,95700.0,95692.0,0.19717747]
[1734902279385,0.00016225,95700.0,95692.0,0.40618047]
[1734902279610,0.00016225,95700.0,95692.0,0.19717747]
[1734902280577,0.00016225,95700.0,95695.0,0.208995]
[1734902280719,0.00016225,95700.0,95699.0,0.02101929]
[1734902281152,0.20914825,95700.0,95699.0,0.02101929]
[1734902281356,0.20914825,95700.0,95692.0,0.0010855]
[1734902281567,0.41813425,95700.0,95692.0,0.0010855]
[1734902281783,0.41813425,95700.0,95692.0,8.55e-05]
[1734902281784,0.09861469,95693.0,95692.0,8.55e-05]
[1734902282096,0.20122944,95693.0,95692.0,8.55e-05]
[1734902283651,0.09861469,95697.0,95692.0,8.55e-05]
[1734902283877,0.00016225,95700.0,95692.0,0.0010855]
[1734902284111,0.00016225,95700.0,95693.0,0.0819]
[1734902284358,0.286597,95695.0,95693.0,0.5175]
[1734902284594,0.30122947,95694.0,95693.0,0.5175]
[1734902284849,0.19992309,95694.0,95693.0,0.5175]
[1734902285091,0.09861469,95694.0,95693.0,0.5175]
[1734902285344,0.09861469,95695.0,95693.0,0.5175]
[1734902285594,0.09861469,95694.0,95693.0,0.5175]
[1734902286304,0.32672309,95694.0,95693.0,0.5175]
[1734902287518,0.32772309,95694.0,95693.0,0.5175]
[1734902287751,0.32672309,95694.0,95693.0,0.5175]
[1734902287943,0.33072309,95694.0,95693.0,0.5175]
[1734902288450,0.10261469,95694.0,95693.0,0.5175]
[1734902288998,0.10261469,95694.0,95693.0,0.3915]
[1734902289848,0.09861469,95694.0,95693.0,0.3915]
[1734902290319,0.10061469,95694.0,95693.0,0.3915]
[1734902290606,0.002,95694.0,95693.0,0.3915]
[1734902290870,0.00016225,95700.0,95699.0,0.208988]
[1734902291152,0.09877694,95700.0,95694.0,0.208999]
[1734902291693,0.09877694,95700.0,95693.0,0.3915]
[1734902291956,0.09861469,95699.0,95693.0,0.3915]
[1734902292196,0.09861469,95697.0,95693.0,0.3915]
[1734902292456,0.09861469,95697.0,95693.0,0.53027307]
[1734902293710,0.09861469,95697.0,95693.0,0.3915]
[1734902293944,0.09861469,95697.0,95693.0,0.2655]
[1734902294179,0.00433325,95700.0,95693.0,0.2655]
[1734902294180,0.00033325,95700.0,95695.0,0.0757]
[1734902294415,0.00033325,95700.0,95698.0,0.208988]
[1734902294643,0.00033325,95700.0,95698.0,0.988468]
[1734902295951,0.00033325,95700.0,95699.0,0.09267814]
[1734902296161,0.00033325,95700.0,95699.0,0.87214814]
[1734902296629,0.00033325,95700.0,95699.0,1.02214814]
[1734902296841,0.00133325,95700.0,95699.0,1.05433933]
[1734902297045,0.00033325,95700.0,95699.0,0.96166119]
[1734902297465,5.03e-06,95700.0,95699.0,0.98599291]
[1734902297717,0.0777,95746.0,95702.0,0.0757]
[1734902297927,0.1013084,95742.0,95733.0,0.12602712]
[1734902298555,0.00130572,95741.0,95733.0,0.12602712]
[1734902299008,0.00130572,95741.0,95731.0,0.208917]
[1734902299009,0.1013084,95741.0,95734.0,0.208912]
[1734902299429,0.1013084,95741.0,95740.0,0.02135474]
[1734902300262,0.19992309,95741.0,95740.0,0.02135474]
[1734902300678,0.20692309,95741.0,95740.0,0.02235474]
[1734902301105,0.007,95741.0,95740.0,0.02235474]
[1734902302994,0.09861469,95742.0,95740.0,0.02135474]
[1734902303379,0.007,95741.0,95740.0,0.02235474]
[1734902303576,0.09861469,95742.0,95740.0,0.02135474]
[1734902303929,0.002,95741.0,95737.0,0.04198332]
[1734902304363,0.002,95741.0,95737.0,0.208904]
[1734902304575,0.002,95741.0,95734.0,0.208912]
[1734902304782,0.09861469,95742.0,95734.0,0.208912]
[1734902305192,0.002,95741.0,95740.0,0.02107706]
[1734902305417,0.002,95741.0,95734.0,0.208912]
[1734902305630,0.002,95741.0,95739.0,0.02087207]
[1734902306058,0.0021712,95741.0,95739.0,0.02087207]
[1734902306343,0.0001712,95741.0,95739.0,0.02087207]
[1734902307167,0.0001712,95741.0,95739.0,0.02287207]
[1734902308930,0.0001712,95741.0,95738.0,0.208902]
[1734902308931,0.0001712,95741.0,95734.0,0.208912]
[1734902309166,0.0001712,95741.0,95738.0,0.208902]
[1734902309779,0.0001712,95741.0,95740.0,0.02100351]
[1734902311397,0.0001712,95741.0,95740.0,0.02300351]
[1734902311854,0.0001712,95741.0,95740.0,0.002]
[1734902312068,0.00147678,95741.0,95740.0,0.002]
[1734902312278,0.00147678,95741.0,95731.0,0.15]
[1734902312487,0.00147678,95741.0,95731.0,0.17042199]
[1734902313663,0.00147678,95741.0,95740.0,0.002]
[1734902313893,0.00147678,95741.0,95731.0,0.17042199]
[1734902313894,0.00147678,95741.0,95732.0,0.208916]
[1734902314130,0.00347678,95741.0,95731.0,0.02042199]
[1734902314311,0.0021712,95741.0,95736.0,0.208906]
[1734902314490,0.0001712,95741.0,95736.0,0.208906]
[1734902314700,0.0021712,95741.0,95736.0,0.208906]
[1734902315147,0.0001712,95741.0,95736.0,0.208906]
[1734902315592,0.0021712,95741.0,95736.0,0.208906]
[1734902316524,0.0021712,95741.0,95740.0,0.208899]
[1734902317253,0.0001712,95741.0,95740.0,0.208899]
[1734902317722,0.0021712,95741.0,95740.0,0.208899]
[1734902317926,0.0001712,95741.0,95740.0,0.290399]
[1734902318392,0.0001712,95741.0,95740.0,0.292399]
[1734902319119,0.0001712,95741.0,95740.0,0.0815]
[1734902319379,0.0001712,95741.0,95740.0,0.5677074]
[1734902320452,0.0001712,95741.0,95740.0,1.3469574]
[1734902320686,0.0001712,95741.0,95740.0,1.3439574]
[1734902320912,0.0011712,95741.0,95740.0,1.3509574]
[1734902321633,0.0011712,95741.0,95740.0,1.39308044]
[1734902323879,0.0011712,95741.0,95740.0,1.26708044]
[1734902326356,0.0011712,95741.0,95740.0,1.2991714]
[1734902326771,0.0011712,95741.0,95740.0,1.3806714]
[1734902327392,0.00016243,95743.0,95740.0,1.5895704]
[1734902327602,0.00016243,95743.0,95742.0,0.381894]
[1734902327807,0.00016243,95743.0,95742.0,1.83053336]
[1734902328468,0.00116243,95743.0,95742.0,1.83053336]
[1734902328870,0.00016243,95743.0,95742.0,1.59863936]
[1734902329170,0.00116243,95743.0,95742.0,1.81353336]
[1734902329395,0.00116243,95743.0,95742.0,1.89273336]
[1734902330399,0.00016243,95743.0,95742.0,1.88673336]
[1734902330870,0.00133363,95743.0,95742.0,1.89573336]
[1734902333348,0.00133363,95743.0,95742.0,1.48273336]
[1734902334460,0.0001712,95752.0,95743.0,0.1]
[1734902334706,0.0001712,95752.0,95749.0,0.358879]
[1734902334914,0.0001712,95752.0,95749.0,1.2393874]
[1734902335117,0.0001712,95752.0,95749.0,1.35067836]
[1734902336708,0.0001712,95752.0,95749.0,1.17016996]
[1734902336915,0.0001712,95752.0,95749.0,0.96129096]
[1734902337131,0.0012,95750.0,95749.0,0.81829096]
[1734902337360,0.0012,95750.0,95749.0,0.7862]
[1734902338352,0.0002,95750.0,95749.0,0.7792]
[1734902338977,0.0002,95750.0,95749.0,0.67438988]
[1734902339196,0.18161469,95750.0,95749.0,0.6562]
[1734902340254,0.09881469,95750.0,95749.0,0.6562]
[1734902340470,0.09881469,95750.0,95749.0,0.6532]
[1734902340696,0.09881469,95750.0,95749.0,0.6542]
[1734902342297,0.28292309,95750.0,95749.0,0.6542]
[1734902342515,0.32872309,95750.0,95749.0,0.6542]
[1734902343642,0.32880869,95750.0,95749.0,0.6532]
[1734902343895,0.33080869,95750.0,95749.0,0.5272]
[1734902344147,0.32880869,95750.0,95749.0,0.5272]
[1734902344604,0.33580869,95750.0,95749.0,0.5282]
[1734902344816,0.32880869,95750.0,95749.0,0.5272]
[1734902345041,0.33780869,95750.0,95749.0,0.5282]
[1734902347550,0.43780869,95750.0,95749.0,0.5282]
[1734902348927,0.43780869,95750.0,95749.0,0.4022]
[1734902350929,0.33780869,95750.0,95749.0,0.4022]
[1734902353896,0.33780869,95750.0,95749.0,0.31846076]
[1734902355700,0.33780869,95750.0,95749.0,0.31863196]
[1734902358013,0.29200869,95750.0,95749.0,0.31863196]
[1734902358230,0.110594,95750.0,95749.0,0.31863196]
[1734902358451,0.20920869,95750.0,95749.0,0.31863196]
[1734902358883,0.20920869,95750.0,95749.0,0.19263196]
[1734902363131,0.28950869,95750.0,95749.0,0.19263196]
[1734902363772,0.28950869,95750.0,95749.0,0.06663196]
[1734902365168,0.38950869,95750.0,95749.0,0.0243712]
[1734902368310,0.46050869,95750.0,95749.0,0.0243712]
[1734902368592,0.71050869,95750.0,95749.0,0.0243712]
[1734902368842,0.09861469,95715.0,95713.0,0.00188608]
[1734902369055,0.21026102,95714.0,95712.0,0.13888653]
[1734902369277,0.09861469,95713.0,95712.0,0.13888653]
[1734902369709,0.09861469,95713.0,95712.0,0.15901322]
[1734902370166,0.09866876,95713.0,95712.0,0.15901322]
[1734902370379,5.407e-05,95713.0,95712.0,0.09728669]
[1734902370801,0.09866876,95713.0,95712.0,0.09728669]
[1734902371011,0.09866876,95713.0,95712.0,0.02068669]
[1734902372561,0.09966876,95713.0,95712.0,0.02068669]
[1734902373155,0.09966876,95713.0,95712.0,0.01924808]
[1734902373835,0.09966876,95713.0,95706.0,0.04324808]
[1734902374061,0.00130604,95712.0,95705.0,0.11851271]
[1734902374279,0.00130604,95712.0,95705.0,0.04191271]
[1734902374700,0.09992073,95712.0,95697.0,0.47077304]
[1734902375092,0.09992073,95712.0,95697.0,0.285591]
[1734902375316,0.09992073,95712.0,95706.0,0.001]
[1734902375738,0.208962,95711.0,95696.0,0.041817]
[1734902375942,0.09861469,95706.0,95701.0,0.044345]
[1734902376152,0.208978,95704.0,95701.0,0.001]
[1734902376356,0.0013062,95703.0,95698.0,0.04193052]
[1734902376784,0.0013062,95703.0,95698.0,8.56e-05]
[1734902378665,0.208984,95701.0,95698.0,0.03615291]
[1734902378934,0.30760269,95699.0,95698.0,8.56e-05]
[1734902379155,0.40891109,95699.0,95698.0,8.56e-05]
[1734902380032,0.50891109,95699.0,95698.0,8.56e-05]
[1734902380288,0.59051109,95699.0,95698.0,8.56e-05]
[1734902380797,0.59051109,95699.0,95688.0,0.06938404]
[1734902380798,0.09861469,95693.0,95688.0,0.06938404]
[1734902381040,0.47161469,95683.0,95681.0,8.55e-05]
[1734902381278,0.76225069,95677.0,95676.0,0.0926904]
[1734902381522,0.86355909,95677.0,95676.0,0.0926904]
[1734902381801,0.89805909,95677.0,95676.0,0.0926904]
[1734902382520,0.44861469,95673.0,95672.0,8.55e-05]
[1734902382789,0.57292309,95673.0,95672.0,0.00024793]
[1734902384790,0.58192309,95673.0,95672.0,0.00024793]
[1734902385035,0.57292309,95673.0,95672.0,0.00024793]
[1734902385491,0.58192309,95673.0,95672.0,0.00024793]
[1734902385712,0.57292309,95673.0,95672.0,0.00024793]
[1734902385957,0.58192309,95673.0,95672.0,0.00024793]
[1734902386409,0.57292309,95673.0,95672.0,0.00024793]
[1734902387713,0.58192309,95673.0,95672.0,0.00024793]
[1734902387938,0.57292309,95673.0,95672.0,0.00024793]
[1734902388146,0.58192309,95673.0,95672.0,0.00024793]
[1734902388671,0.57292309,95673.0,95672.0,0.00024793]
[1734902388916,0.57292309,95673.0,95636.0,0.209124]
[1734902388917,0.09861469,95643.0,95638.0,0.11514351]
[1734902389155,0.09861469,95643.0,95638.0,0.00054041]
[1734902389851,0.09861469,95643.0,95638.0,0.20966141]
[1734902390548,0.09861469,95643.0,95638.0,0.24130661]
[1734902390808,0.09861469,95645.0,95642.0,0.209112]
[1734902391032,0.09861469,95644.0,95642.0,0.209112]
[1734902391528,0.09861469,95644.0,95639.0,0.209119]
[1734902392021,0.00130691,95656.0,95639.0,0.209119]
[1734902392022,0.09861469,95648.0,95640.0,0.0471]
[1734902392247,0.09861469,95644.0,95640.0,0.0471]
[1734902392478,0.003,95643.0,95640.0,0.0471]
[1734902392724,0.09861469,95644.0,95640.0,0.0471]
[1734902393450,0.20911,95643.0,95640.0,0.0471]
[1734902393701,0.20911,95643.0,95638.0,0.00062601]
[1734902393702,0.30773369,95639.0,95638.0,0.00062601]
[1734902393920,0.40904209,95639.0,95638.0,0.00062601]
[1734902394400,0.19992309,95639.0,95627.0,0.00412601]
[1734902394608,0.209133,95633.0,95623.0,0.15]
[1734902394834,0.00130711,95632.0,95621.0,0.359159]
[1734902395057,0.10261551,95632.0,95622.0,0.03096088]
[1734902395245,0.10261551,95632.0,95615.0,0.15]
[1734902395488,0.10261551,95632.0,95599.0,0.21059131]
[1734902395489,0.09861469,95625.0,95604.0,0.209195]
[1734902395699,0.209166,95618.0,95613.0,0.0311623]
[1734902395922,0.10261579,95617.0,95611.0,0.02053005]
[1734902396141,0.10261579,95617.0,95604.0,0.209196]
[1734902396370,0.14961579,95617.0,95607.0,0.03083692]
[1734902396591,0.14961579,95617.0,95597.0,8.56e-05]
[1734902396592,0.45203048,95617.0,95616.0,6e-07]
[1734902396804,0.70072309,95617.0,95616.0,6e-07]
[1734902397033,0.73094333,95617.0,95616.0,6e-07]
[1734902397255,0.73181019,95617.0,95616.0,6e-07]
[1734902397473,0.73587578,95617.0,95616.0,6e-07]
[1734902397696,0.73094333,95617.0,95616.0,6e-07]
[1734902397911,0.70072309,95617.0,95616.0,6e-07]
[1734902398581,0.70972309,95617.0,95616.0,6e-07]
[1734902398765,0.70072309,95617.0,95616.0,6e-07]
[1734902398974,0.70072309,95617.0,95597.0,8.56e-05]
[1734902398975,0.09861469,95584.0,95570.0,0.12602712]
[1734902399193,0.09861469,95584.0,95572.0,0.209265]
[1734902399426,0.1013084,95583.0,95563.0,0.285485]
[1734902399634,0.1013084,95583.0,95550.0,0.12602712]
[1734902399635,0.09861469,95569.0,95568.0,0.03111272]
[1734902400056,0.09861469,95569.0,95567.0,0.02133827]
[1734902400265,0.09861469,95570.0,95567.0,0.02150052]
[1734902400473,0.09861469,95569.0,95568.0,0.209275]
[1734902400691,0.10261616,95583.0,95568.0,0.209275]
[1734902400692,0.09861469,95571.0,95568.0,0.209275]
[1734902400912,0.09861469,95579.0,95574.0,0.209261]
[1734902401134,0.09861469,95584.0,95579.0,0.209249]
[1734902401342,0.09861469,95591.0,95579.0,0.209249]
[1734902401551,0.09861469,95584.0,95570.0,0.15]
[1734902401973,0.09861469,95584.0,95581.0,0.209245]
[1734902402334,0.09861469,95584.0,95575.0,0.418515]
[1734902402541,0.09861469,95584.0,95580.0,0.209248]
[1734902403778,0.09861469,95588.0,95570.0,0.15]
[1734902403998,0.00130776,95587.0,95586.0,0.209235]
[1734902404232,0.00130774,95589.0,95582.0,0.209243]
[1734902404592,0.002,95584.0,95582.0,0.209243]
[1734902404814,0.09992245,95587.0,95582.0,0.209243]
[1734902405076,0.09861469,95584.0,95582.0,0.209243]
[1734902405301,0.09861469,95584.0,95579.0,0.20925]
[1734902405534,0.09861469,95584.0,95581.0,8.56e-05]
[1734902405771,0.00130776,95588.0,95581.0,8.56e-05]
[1734902406016,0.09861469,95584.0,95582.0,0.209244]
[1734902406750,0.09861469,95586.0,95583.0,0.209241]
[1734902407000,0.00430776,95587.0,95583.0,0.209241]
[1734902407001,0.003,95587.0,95584.0,0.209239]
[1734902407483,0.003,95587.0,95585.0,0.15]
[1734902407728,0.003,95587.0,95586.0,0.359235]
[1734902407984,0.09861469,95601.0,95600.0,0.209204]
[1734902408220,0.09861469,95604.0,95600.0,0.209204]
[1734902408473,0.00130753,95603.0,95600.0,0.418408]
[1734902408749,0.00130753,95603.0,95590.0,0.12602712]
[1734902408750,0.19992309,95602.0,95586.0,0.1705074]
[1734902408970,0.09861469,95589.0,95580.0,0.209247]
[1734902409219,0.09861469,95589.0,95575.0,0.15]
[1734902409450,0.209212,95597.0,95582.0,0.209244]
[1734902409451,0.09861469,95587.0,95582.0,0.209244]
[1734902409958,0.09861469,95587.0,95581.0,0.00024785]
[1734902410913,0.09861469,95587.0,95582.0,0.209244]
[1734902411166,0.09861469,95593.0,95590.0,0.209226]
[1734902411401,0.09861469,95592.0,95583.0,0.12602712]
[1734902411627,0.09861469,95592.0,95591.0,0.209224]
[1734902411852,0.09861469,95592.0,95591.0,0.418448]
[1734902412104,0.09861469,95594.0,95591.0,0.418448]
[1734902412370,0.09861469,95592.0,95590.0,0.209225]
[1734902412587,0.006,95593.0,95590.0,0.418451]
[1734902412831,0.09861469,95595.0,95594.0,0.209216]
[1734902413059,0.001,95592.0,95590.0,0.209225]
[1734902413997,0.001,95592.0,95585.0,0.209236]
[1734902414447,0.09861469,95595.0,95590.0,0.209225]
[1734902414698,0.1,95623.0,95609.0,0.209185]
[1734902414699,0.09861469,95610.0,95609.0,0.209185]
[1734902414956,0.09861469,95606.0,95597.0,0.12602712]
[1734902415187,0.09861469,95606.0,95604.0,0.209194]
[1734902415659,0.09861469,95606.0,95599.0,0.209207]
[1734902415893,0.09861469,95606.0,95603.0,0.209197]
[1734902417607,0.09900499,95606.0,95603.0,0.209197]
[1734902418117,0.09600499,95606.0,95603.0,0.209197]
[1734902418359,0.09800499,95606.0,95603.0,0.209197]
[1734902418594,0.09600499,95606.0,95603.0,0.24096299]
[1734902418831,0.09600499,95606.0,95603.0,0.11496299]
[1734902419048,0.09600499,95607.0,95603.0,0.03176599]
[1734902419254,0.09600499,95607.0,95599.0,0.209207]
[1734902419255,0.09600499,95606.0,95597.0,0.12602712]
[1734902419485,0.09600499,95606.0,95598.0,0.03220263]
[1734902419760,0.09600499,95606.0,95604.0,0.209195]
[1734902420030,0.09600499,95611.0,95597.0,0.1577404]
[1734902420292,0.09600499,95611.0,95608.0,0.209185]
[1734902420768,0.09600499,95612.0,95608.0,0.209185]
[1734902421150,0.09600499,95612.0,95604.0,0.209194]
[1734902421151,0.09600499,95610.0,95604.0,0.209194]
[1734902421396,0.09600499,95610.0,95598.0,0.15]
[1734902421611,0.09600499,95610.0,95605.0,0.209194]
[1734902422071,0.09600499,95611.0,95605.0,0.418388]
[1734902422331,0.19731339,95612.0,95609.0,0.209183]
[1734902422818,0.1,95635.0,95598.0,0.15]
[1734902422819,0.0829,95633.0,95606.0,0.0778]
[1734902423062,0.09600499,95626.0,95623.0,0.33518112]
[1734902423309,0.0829,95641.0,95616.0,0.12602712]
[1734902423552,0.0829,95650.0,95631.0,0.12602712]
[1734902423792,0.10261541,95649.0,95640.0,2.712e-05]
[1734902424026,0.09600499,95641.0,95640.0,2.712e-05]
[1734902424489,0.09600499,95637.0,95636.0,0.209124]
[1734902424987,0.09600499,95637.0,95632.0,0.209135]
[1734902425409,0.09600499,95637.0,95632.0,0.41827]
[1734902426474,0.09600499,95637.0,95636.0,0.02086914]
[1734902427687,0.09700499,95637.0,95636.0,0.02086914]
[1734902427902,0.09600499,95637.0,95636.0,0.02086914]
[1734902428851,0.19731339,95637.0,95631.0,0.03108783]
[1734902429085,0.209153,95624.0,95612.0,0.15]
[1734902429292,0.209153,95624.0,95604.0,0.14107502]
[1734902429293,0.209187,95608.0,95604.0,0.09227502]
[1734902429500,0.09600499,95609.0,95604.0,0.09227502]
[1734902429501,0.00130744,95607.0,95604.0,0.09227502]
[1734902429671,0.09600499,95605.0,95604.0,0.09227502]
[1734902429853,0.09600499,95605.0,95604.0,0.12401291]
[1734902430113,0.09600499,95605.0,95604.0,0.03173789]
[1734902430328,0.09600499,95604.0,95603.0,8.57e-05]
[1734902430558,0.09600499,95604.0,95603.0,0.00024795]
[1734902431931,0.10584545,95604.0,95603.0,0.00024795]
[1734902432337,0.20715385,95604.0,95603.0,0.00024795]
[1734902432756,0.21015385,95604.0,95603.0,0.00024795]
[1734902433832,0.21015385,95604.0,95580.0,0.15686937]
[1734902433833,0.21015385,95604.0,95580.0,0.03120292]